bitfinex/quotes_BTCUSD_20241123
["timestamp","ask_amount","ask_price","bid_price","bid_amount"]
[1732397496376,0.001718,97693.0,97692.0,0.92210461]
[1732397497249,0.001718,97693.0,97692.0,1.32819284]
[1732397497667,0.001718,97693.0,97692.0,0.92210461]
[1732397497876,0.001718,97693.0,97692.0,1.32819284]
[1732397498299,0.001718,97693.0,97692.0,0.92210461]
[1732397500282,0.001718,97693.0,97692.0,1.32823921]
[1732397500499,0.001718,97693.0,97692.0,0.96960461]
[1732397500915,0.001718,97693.0,97692.0,1.02440461]
[1732397502172,0.001718,97693.0,97692.0,0.96960461]
[1732397506568,0.1047055,97706.0,97693.0,0.15]
[1732397506776,0.1047055,97706.0,97705.0,0.030704]
[1732397507427,0.1851055,97708.0,97707.0,0.030704]
[1732397507647,0.1871055,97708.0,97707.0,0.43645335]
[1732397507855,0.1871055,97708.0,97705.0,0.030704]
[1732397508061,0.1067055,97706.0,97705.0,0.030704]
[1732397508481,0.1518055,97706.0,97705.0,0.030704]
[1732397508719,0.1498055,97706.0,97705.0,0.030704]
[1732397508929,0.1518055,97706.0,97705.0,0.030704]
[1732397510391,0.1498055,97706.0,97705.0,0.07115554]
[1732397510600,0.1498055,97706.0,97705.0,0.030704]
[1732397511201,0.0451,97706.0,97705.0,0.030704]
[1732397511404,0.1498055,97706.0,97705.0,0.030704]
[1732397515784,0.0451,97706.0,97705.0,0.030704]
[1732397515989,0.1498055,97706.0,97705.0,0.030704]
[1732397520148,0.0451,97706.0,97705.0,0.43629624]
[1732397520368,0.1498055,97706.0,97705.0,0.43629096]
[1732397520790,0.1498055,97706.0,97705.0,0.43632545]
[1732397521436,0.1498055,97706.0,97705.0,0.030704]
[1732397521893,0.1498055,97706.0,97705.0,0.43636295]
[1732397522121,0.1498055,97706.0,97705.0,0.030704]
[1732397528347,0.1047055,97706.0,97705.0,0.030704]
[1732397532409,0.1047055,97706.0,97705.0,0.0324216]
[1732397534327,0.1055643,97707.0,97706.0,0.030704]
[1732397534745,0.0008588,97707.0,97706.0,0.030704]
[1732397534959,0.1055643,97707.0,97706.0,0.030704]
[1732397535407,0.1047055,97706.0,97702.0,0.030705]
[1732397535624,0.1047055,97706.0,97669.0,0.45944736]
[1732397535625,0.1047055,97706.0,97705.0,0.030704]
[1732397535845,0.1055643,97707.0,97706.0,0.030704]
[1732397538549,0.0008588,97707.0,97706.0,0.030704]
[1732397539026,0.0008588,97707.0,97706.0,0.229104]
[1732397541221,0.0008588,97707.0,97706.0,0.33111827]
[1732397545554,0.0008588,97707.0,97706.0,0.13271827]
[1732397547530,0.0008582,97710.0,97709.0,0.030703]
[1732397547531,0.00049651,97710.0,97709.0,0.030703]
[1732397547747,0.00049651,97710.0,97709.0,0.13271727]
[1732397547956,0.00049651,97710.0,97704.0,0.030704]
[1732397548176,0.00049651,97710.0,97709.0,0.030703]
[1732397552118,0.00049651,97710.0,97709.0,0.180703]
[1732397552574,0.0008583,97712.0,97711.0,0.030702]
[1732397552800,0.0476,97724.0,97711.0,0.030702]
[1732397552801,0.0495,97729.0,97714.0,0.030701]
[1732397553025,0.0495,97729.0,97714.0,0.28271527]
[1732397553522,0.0495,97735.0,97714.0,0.30571527]
[1732397553736,0.0495,97735.0,97714.0,0.45601274]
[1732397555265,0.0495,97735.0,97714.0,0.30571527]
[1732397555481,0.0495,97735.0,97715.0,0.173]
[1732397555687,0.0495,97735.0,97729.0,0.030697]
[1732397556192,0.1542055,97735.0,97729.0,0.030697]
[1732397557360,0.1047055,97735.0,97729.0,0.030697]
[1732397557604,0.1308,97730.0,97729.0,0.030697]
[1732397558533,0.1308,97730.0,97729.0,0.07285632]
[1732397558757,0.1308,97730.0,97729.0,0.030697]
[1732397560897,0.1308,97730.0,97729.0,0.43536238]
[1732397561106,0.1308,97730.0,97729.0,0.030697]
[1732397561321,0.1308,97730.0,97729.0,0.43536238]
[1732397562173,0.1308,97730.0,97729.0,0.030697]
[1732397564611,0.1847055,97735.0,97734.0,0.030695]
[1732397566146,0.2329055,97735.0,97734.0,0.030695]
[1732397567468,0.1282,97735.0,97734.0,0.030695]
[1732397567673,0.2329055,97735.0,97734.0,0.030695]
[1732397570488,0.2337642,97735.0,97734.0,0.030695]
[1732397578448,0.2337642,97735.0,97734.0,0.4353723]
[1732397578869,0.2337642,97735.0,97732.0,0.040927]
[1732397579142,0.2337642,97735.0,97734.0,0.030695]
[1732397583493,0.23322192,97735.0,97734.0,0.030695]
[1732397585351,0.12851642,97735.0,97734.0,0.030695]
[1732397587320,0.08031642,97735.0,97734.0,0.030695]
[1732397587534,0.0008587,97735.0,97734.0,0.030695]
[1732397591031,0.0008587,97735.0,97734.0,0.28270927]
[1732397591714,0.0008587,97735.0,97734.0,0.01180659]
[1732397592141,0.0008587,97735.0,97732.0,0.071622]
[1732397592557,0.0008587,97735.0,97734.0,0.030695]
[1732397594309,0.0008587,97735.0,97734.0,0.0324122]
[1732397600393,0.0470587,97735.0,97734.0,0.0324122]
[1732397600610,0.000859,97740.0,97739.0,0.030693]
[1732397602134,0.0757,97742.0,97741.0,0.030693]
[1732397606666,0.0765586,97742.0,97741.0,0.030693]
[1732397607540,0.0765586,97742.0,97741.0,0.0719562]
[1732397607989,0.0765586,97742.0,97741.0,0.030693]
[1732397611623,0.0008586,97742.0,97741.0,0.030693]
[1732397612523,0.0008586,97742.0,97739.0,0.15]
[1732397612760,0.0008586,97742.0,97740.0,0.030693]
[1732397612761,0.1241,97741.0,97740.0,0.030693]
[1732397613479,0.076,97741.0,97740.0,0.030693]
[1732397615465,0.0008586,97742.0,97741.0,0.030693]
[1732397618366,0.0758,97755.0,97754.0,0.030689]
[1732397620704,0.03945245,97755.0,97754.0,0.030689]
[1732397621321,0.1691055,97763.0,97751.0,0.03069]
[1732397621554,0.1691055,97763.0,97762.0,0.030686]
[1732397621765,0.0644,97763.0,97762.0,0.030686]
[1732397623944,0.1402,97763.0,97762.0,0.030686]
[1732397626562,0.1402,97763.0,97756.0,0.15]
[1732397626794,0.1402,97763.0,97762.0,0.030686]
[1732397627430,0.2449055,97763.0,97762.0,0.030686]
[1732397629638,0.2469055,97763.0,97762.0,0.030686]
[1732397630941,0.2477643,97763.0,97762.0,0.030686]
[1732397632229,0.0956588,97763.0,97762.0,0.030686]
[1732397643825,0.1455588,97763.0,97762.0,0.030686]
[1732397648764,0.0956588,97763.0,97762.0,0.030686]
[1732397659998,0.1440588,97763.0,97762.0,0.030686]
[1732397660235,0.44935165,97763.0,97762.0,0.030686]
[1732397660568,0.44807307,97763.0,97762.0,0.030686]
[1732397660778,0.44607307,97763.0,97762.0,0.030686]
[1732397661628,0.44607307,97763.0,97753.0,0.07915327]
[1732397661842,0.103293,97762.0,97761.0,0.030687]
[1732397665205,0.10201427,97762.0,97761.0,0.030687]
[1732397665860,0.1440588,97763.0,97762.0,0.030686]
[1732397667549,0.1440588,97763.0,97762.0,0.0726535]
[1732397667758,0.0956588,97763.0,97762.0,0.030686]
[1732397697091,0.0956588,97763.0,97753.0,0.07915327]
[1732397697267,0.0956588,97763.0,97762.0,0.030686]
[1732397699456,0.1453588,97763.0,97762.0,0.030686]
[1732397701165,0.1453588,97763.0,97750.0,0.08087067]
[1732397701381,0.1453588,97763.0,97762.0,0.020457]
[1732397702267,0.1258,97762.0,97760.0,0.020458]
[1732397702487,0.07737868,97761.0,97760.0,0.020458]
[1732397702911,0.07737868,97761.0,97750.0,0.07915327]
[1732397703331,0.07737868,97761.0,97760.0,0.020458]
[1732397704422,0.0761,97759.0,97739.0,0.0017176]
[1732397704664,0.0497,97755.0,97753.0,0.020459]
[1732397704902,0.07737875,97754.0,97753.0,0.020459]
[1732397705112,0.0497,97753.0,97750.0,0.02046]
[1732397705321,0.07737877,97752.0,97750.0,0.02046]
[1732397705524,0.07737877,97752.0,97751.0,0.02046]
[1732397706654,0.07737877,97752.0,97746.0,0.02046]
[1732397706883,0.0497,97751.0,97748.0,0.02046]
[1732397707120,0.07737884,97750.0,97749.0,0.02046]
[1732397707361,0.0761,97750.0,97749.0,0.02046]
[1732397708111,0.0761,97750.0,97745.0,0.020461]
[1732397708325,0.0761,97750.0,97749.0,0.02046]
[1732397714366,0.1253,97750.0,97749.0,0.02046]
[1732397719925,0.1253,97750.0,97747.0,0.02046]
[1732397720187,0.05107883,97749.0,97747.0,0.02046]
[1732397720394,0.05107883,97749.0,97748.0,0.02046]
[1732397720802,0.0498,97749.0,97748.0,0.02046]
[1732397723601,0.302308,97744.0,97743.0,0.0017174]
[1732397723811,0.53932227,97744.0,97743.0,0.0017174]
[1732397724907,0.64825589,97744.0,97743.0,0.0017174]
[1732397726446,0.0832,97740.0,97716.0,0.020467]
[1732397726653,0.0498,97738.0,97732.0,0.020464]
[1732397726861,0.002,97740.0,97732.0,0.020464]
[1732397726862,0.0498,97736.0,97733.0,0.020463]
[1732397727073,0.0498,97736.0,97732.0,0.020464]
[1732397727283,0.08447899,97737.0,97732.0,0.020464]
[1732397727284,0.0498,97733.0,97732.0,0.020464]
[1732397727509,0.05107899,97733.0,97732.0,0.020464]
[1732397727722,0.05107899,97733.0,97720.0,0.14190967]
[1732397727723,0.0498,97733.0,97721.0,0.020466]
[1732397727929,0.079,97730.0,97729.0,0.020464]
[1732397729424,0.08027903,97730.0,97726.0,0.020465]
[1732397729634,0.00127908,97729.0,97727.0,0.020465]
[1732397730049,0.00127908,97729.0,97723.0,0.020465]
[1732397730264,0.079,97727.0,97722.0,0.020466]
[1732397730485,0.04857913,97726.0,97722.0,0.020466]
[1732397730691,0.04857913,97726.0,97724.0,0.020465]
[1732397731432,0.04857913,97726.0,97725.0,0.020465]
[1732397731664,0.04857913,97726.0,97720.0,0.04235897]
[1732397731874,0.04857913,97726.0,97711.0,0.180702]
[1732397731875,0.079,97723.0,97711.0,0.030702]
[1732397732083,0.102333,97720.0,97711.0,0.030702]
[1732397732290,0.102333,97720.0,97706.0,0.030704]
[1732397732291,0.00127921,97719.0,97706.0,0.030704]
[1732397732498,0.10361321,97719.0,97714.0,0.020467]
[1732397732723,0.102335,97718.0,97710.0,0.030702]
[1732397732934,0.00127923,97717.0,97713.0,0.020468]
[1732397733198,0.00127923,97717.0,97710.0,0.030702]
[1732397733199,0.00127923,97718.0,97710.0,0.030702]
[1732397733399,0.00127923,97718.0,97717.0,0.020467]
[1732397733615,0.00127923,97720.0,97714.0,0.030701]
[1732397733823,0.1241,97719.0,97716.0,0.020467]
[1732397734034,0.00127923,97718.0,97716.0,0.020467]
[1732397734465,0.00127923,97718.0,97717.0,0.020467]
[1732397734912,0.1241,97719.0,97718.0,0.020467]
[1732397735139,0.0466589,97726.0,97725.0,0.020465]
[1732397735367,0.0008589,97726.0,97725.0,0.020465]
[1732397740446,0.0008589,97726.0,97725.0,0.76100271]
[1732397747030,0.0008589,97726.0,97725.0,0.76100271]
[1732397756068,0.0008589,97726.0,97725.0,0.53459168]
[1732397756284,0.0008589,97726.0,97725.0,0.55505668]
[1732397762430,0.0008589,97726.0,97725.0,0.55482736]
[1732397771321,0.0008589,97726.0,97725.0,0.55654496]
[1732397776722,0.0008589,97726.0,97725.0,0.53607996]
[1732397777143,0.0054878,97726.0,97725.0,0.53607996]
[1732397777437,0.40519917,97726.0,97725.0,0.53607996]
[1732397777647,0.5187474,97726.0,97725.0,0.53607996]
[1732397777859,0.5662474,97726.0,97725.0,0.53607996]
[1732397778073,0.6431474,97726.0,97725.0,0.53607996]
[1732397780003,0.4933214,97726.0,97725.0,0.53607996]
[1732397780228,0.4164214,97726.0,97725.0,0.53607996]
[1732397780450,0.5187474,97726.0,97725.0,0.53607996]
[1732397780669,0.4164214,97726.0,97725.0,0.53607996]
[1732397782094,0.5187474,97726.0,97725.0,0.53607996]
[1732397782324,0.4164214,97726.0,97725.0,0.53607996]
[1732397783491,0.5187474,97726.0,97725.0,0.53607996]
[1732397783737,0.5207474,97726.0,97725.0,0.53607996]
[1732397785722,0.5187474,97726.0,97725.0,0.53607996]
[1732397786401,0.5207474,97726.0,97725.0,0.53607996]
[1732397788756,0.6465474,97726.0,97725.0,0.53607996]
[1732397790117,0.6465474,97726.0,97725.0,0.21963944]
[1732397791446,0.64193279,97726.0,97725.0,0.01090708]
[1732397794951,0.53905962,97726.0,97725.0,0.01090708]
[1732397795157,0.3119107,97726.0,97725.0,0.0017176]
[1732397795581,0.3136283,97726.0,97725.0,0.0017176]
[1732397800661,0.10928803,97726.0,97725.0,0.0017176]
[1732397800879,0.0786176,97726.0,97725.0,0.0017176]
[1732397801093,0.0786176,97726.0,97725.0,0.0221826]
[1732397801738,0.0786176,97726.0,97725.0,0.0017176]
[1732397801994,0.0786176,97726.0,97725.0,0.0221826]
[1732397802834,0.0786176,97726.0,97725.0,0.0017176]
[1732397803038,0.0798968,97726.0,97725.0,0.0017176]
[1732397805905,0.0786176,97726.0,97725.0,0.0221826]
[1732397806561,0.0786176,97726.0,97725.0,0.0017176]
[1732397806995,0.1809436,97726.0,97725.0,0.0017176]
[1732397807209,0.0786176,97726.0,97725.0,0.0017176]
[1732397807665,0.07989681,97726.0,97725.0,0.0017176]
[1732397808394,0.18222281,97726.0,97725.0,0.0017176]
[1732397808648,0.07989681,97726.0,97725.0,0.0017176]
[1732397810609,0.07989681,97726.0,97717.0,0.020467]
[1732397810828,0.04697922,97725.0,97722.0,0.020466]
[1732397812215,0.04697922,97725.0,97719.0,0.020466]
[1732397812693,0.04697922,97725.0,97720.0,0.020466]
[1732397813539,0.04697922,97725.0,97714.0,0.030701]
[1732397813745,0.14930722,97725.0,97714.0,0.030701]
[1732397813959,0.14930722,97725.0,97719.0,0.020466]
[1732397814591,0.14930722,97725.0,97705.0,0.030704]
[1732397814592,0.00127922,97725.0,97705.0,0.030704]
[1732397814817,0.14841427,97724.0,97703.0,0.030705]
[1732397815039,0.102332,97721.0,97715.0,0.020467]
[1732397815265,0.12787927,97720.0,97715.0,0.020467]
[1732397815757,0.12787927,97720.0,97704.0,0.15]
[1732397815969,0.12787927,97720.0,97712.0,0.030702]
[1732397816191,0.12787927,97720.0,97715.0,0.020467]
[1732397816404,0.12787927,97720.0,97714.0,0.020467]
[1732397816613,0.12787927,97720.0,97713.0,0.030702]
[1732397816614,0.12787927,97720.0,97716.0,0.020467]
[1732397817260,0.12787927,97720.0,97705.0,0.030704]
[1732397817474,0.12787927,97720.0,97717.0,0.020467]
[1732397817695,0.12787927,97720.0,97718.0,0.020466]
[1732397822324,0.12787927,97720.0,97719.0,0.020466]
[1732397822529,0.12787927,97720.0,97717.0,0.020467]
[1732397823153,0.12787927,97720.0,97714.0,0.030701]
[1732397823154,0.12787927,97720.0,97719.0,0.020466]
[1732397823424,0.1266,97720.0,97719.0,0.020466]
[1732397825554,0.1266,97720.0,97714.0,0.030701]
[1732397825555,0.0017176,97726.0,97713.0,0.030702]
[1732397825778,0.0017176,97726.0,97725.0,0.020465]
[1732397828880,0.0017176,97726.0,97718.0,0.0307]
[1732397829100,0.0017176,97726.0,97725.0,0.0213238]
[1732397833514,0.0017176,97726.0,97725.0,0.03471148]
[1732397833950,0.0017176,97726.0,97725.0,0.0213238]
[1732397836035,0.00158201,97726.0,97725.0,0.0213238]
[1732397836237,0.00158201,97726.0,97725.0,0.020465]
[1732397836454,0.04698201,97726.0,97725.0,0.020465]
[1732397840399,0.00158201,97726.0,97725.0,0.020465]
[1732397840617,0.00158201,97726.0,97725.0,0.02973547]
[1732397840831,0.00158201,97726.0,97725.0,0.03900594]
[1732397843818,0.00158201,97726.0,97725.0,0.020465]
[1732397844046,0.08328201,97726.0,97725.0,0.020465]
[1732397858796,0.0454,97729.0,97728.0,0.020464]
[1732397860570,0.002,97748.0,97725.0,0.020465]
[1732397860571,0.0469,97741.0,97740.0,0.020462]
[1732397860790,0.0469,97741.0,97730.0,0.07915327]
[1732397861024,0.0469,97741.0,97740.0,0.020462]
[1732397861983,0.1269,97741.0,97740.0,0.020462]
[1732397863093,0.1286178,97741.0,97740.0,0.020462]
[1732397863341,0.1286178,97741.0,97740.0,0.06229735]
[1732397863555,0.1286178,97741.0,97740.0,0.020462]
[1732397872758,0.4355578,97741.0,97740.0,0.020462]
[1732397873789,0.4355578,97741.0,97738.0,0.020462]
[1732397873790,0.0803,97739.0,97738.0,0.020462]
[1732397874014,0.38724,97739.0,97738.0,0.020462]
[1732397874471,0.43274,97739.0,97738.0,0.020462]
[1732397878247,0.1258,97738.0,97735.0,0.020463]
[1732397878457,0.30821897,97737.0,97736.0,0.020463]
[1732397878676,0.43274,97737.0,97736.0,0.020463]
[1732397880412,0.43274,97737.0,97735.0,0.020463]
[1732397880623,0.1258,97736.0,97735.0,0.020463]
[1732397880849,0.43274,97736.0,97735.0,0.020463]
[1732397882354,0.0803,97735.0,97734.0,0.020463]
[1732397882568,0.38724,97735.0,97734.0,0.020463]
[1732397882801,0.38724,97735.0,97722.0,0.04228761]
[1732397883034,0.0455,97734.0,97733.0,0.020463]
[1732397883247,0.35244,97734.0,97733.0,0.020463]
[1732397884542,0.43274,97734.0,97733.0,0.020463]
[1732397888246,0.43274,97734.0,97729.0,0.020464]
[1732397888486,0.05097904,97733.0,97732.0,0.020464]
[1732397888713,0.0497,97733.0,97732.0,0.020464]
[1732397890295,0.35664,97733.0,97732.0,0.020464]
[1732397890728,0.0497,97732.0,97731.0,0.020464]
[1732397890940,0.35664,97732.0,97731.0,0.020464]
[1732397891158,0.35664,97732.0,97723.0,0.010232]
[1732397891159,0.0497,97731.0,97723.0,0.010232]
[1732397891388,0.296708,97730.0,97728.0,0.010232]
[1732397891654,0.296708,97730.0,97729.0,0.010232]
[1732397893903,0.419008,97730.0,97729.0,0.010232]
[1732397899869,0.419008,97730.0,97729.0,0.0516871]
[1732397900558,0.419008,97730.0,97729.0,0.010232]
[1732397904300,0.419008,97730.0,97696.0,0.05924256]
[1732397904533,0.419008,97730.0,97729.0,0.010232]
[1732397911934,0.342108,97730.0,97729.0,0.010232]
[1732397912343,0.296708,97730.0,97729.0,0.010232]
[1732397912546,0.296708,97730.0,97729.0,0.0110908]
[1732397912970,0.2984256,97730.0,97729.0,0.0110908]
[1732397921483,0.4279256,97730.0,97729.0,0.0110908]
[1732397923031,0.4279256,97730.0,97729.0,0.010232]
[1732397931970,0.3449256,97730.0,97729.0,0.02942614]
[1732397933199,0.3449256,97730.0,97729.0,0.010232]
[1732397936625,0.3449256,97730.0,97729.0,0.05259543]
[1732397936850,0.3449256,97730.0,97729.0,0.010232]
[1732397940504,0.3449256,97730.0,97729.0,0.00876457]
[1732397942812,0.4255256,97730.0,97729.0,0.00876457]
[1732397948516,0.4255256,97730.0,97721.0,0.010233]
[1732397948517,0.0479,97729.0,97715.0,0.16152421]
[1732397948723,0.0479,97729.0,97721.0,0.10201427]
[1732397948724,0.286476,97728.0,97721.0,0.10201427]
[1732397948925,0.286476,97728.0,97727.0,0.010232]
[1732397956644,0.25198573,97728.0,97727.0,0.26224627]
[1732397956858,0.17101405,97728.0,97727.0,0.43738144]
[1732397957079,0.15984554,97728.0,97727.0,0.43738144]
[1732397957292,0.14867703,97728.0,97727.0,0.43738144]
[1732397957712,0.01750609,97749.0,97727.0,0.63738144]
[1732397957933,0.07985354,97774.0,97727.0,0.63738144]
[1732397957934,0.0767,97762.0,97750.0,0.01023]
[1732397958147,0.0767,97762.0,97761.0,0.010229]
[1732397960872,0.1217,97762.0,97761.0,0.010229]
[1732397962458,0.1225586,97762.0,97761.0,0.010229]
[1732397972422,0.0008586,97762.0,97761.0,0.11224327]
[1732397972848,0.083,97768.0,97762.0,0.010228]
[1732397974411,0.09156712,97834.0,97762.0,0.010228]
[1732397974412,0.15881803,97800.0,97799.0,0.233225]
[1732397974613,0.204468,97815.0,97804.0,0.010224]
[1732397974825,0.204468,97815.0,97798.0,0.5478]
[1732397974826,0.00127799,97818.0,97800.0,0.10201427]
[1732397975042,0.0771,97806.0,97804.0,0.010224]
[1732397975692,0.0771,97806.0,97804.0,0.04713925]
[1732397976331,0.0771,97806.0,97804.0,0.010224]
[1732397976541,0.0771,97806.0,97804.0,0.04855592]
[1732397980726,0.0918891,97819.0,97804.0,0.04855592]
[1732397980940,0.0918891,97819.0,97804.0,0.15057019]
[1732397986440,0.102232,97817.0,97804.0,0.11223827]
[1732397986652,0.102233,97816.0,97804.0,0.11223827]
[1732397986875,0.102234,97815.0,97804.0,0.11223827]
[1732397987300,0.102235,97814.0,97804.0,0.11223827]
[1732397988168,0.0008589,97805.0,97804.0,0.010224]
[1732397988857,0.0008589,97805.0,97803.0,0.010224]
[1732397989082,0.0008589,97805.0,97804.0,0.010224]
[1732397990616,0.0008589,97805.0,97804.0,0.27336423]
[1732397991279,0.0008589,97805.0,97804.0,0.12336423]
[1732397997313,0.00040366,97805.0,97804.0,0.12336423]
[1732397997718,0.00040366,97805.0,97804.0,0.12508063]
[1732398001562,0.08315166,97819.0,97818.0,0.010223]
[1732398002946,0.08315166,97819.0,97815.0,0.010223]
[1732398003154,0.08315166,97819.0,97816.0,0.010223]
[1732398003385,0.08315166,97819.0,97817.0,0.010223]
[1732398003607,0.08315166,97819.0,97805.0,0.16851142]
[1732398003855,0.08315166,97819.0,97814.0,0.010223]
[1732398004067,0.18538166,97819.0,97812.0,0.010223]
[1732398004284,0.08315166,97819.0,97814.0,0.010223]
[1732398004736,0.08315166,97819.0,97817.0,0.010223]
[1732398004963,0.08315166,97819.0,97818.0,0.010223]
[1732398005664,0.08315166,97819.0,97812.0,0.010223]
[1732398005890,0.08315166,97819.0,97818.0,0.010223]
[1732398007886,0.13145166,97819.0,97814.0,0.010223]
[1732398008107,0.43814166,97819.0,97814.0,0.010223]
[1732398008322,0.43814166,97819.0,97817.0,0.010223]
[1732398008791,0.43814166,97819.0,97815.0,0.010223]
[1732398009022,0.43814166,97819.0,97816.0,0.010223]
[1732398009244,0.43899966,97819.0,97816.0,0.010223]
[1732398009452,0.43899966,97819.0,97817.0,0.010223]
[1732398010302,0.0782,97818.0,97808.0,0.010224]
[1732398010525,0.1236,97808.0,97804.0,0.0017164]
[1732398010752,0.408932,97807.0,97804.0,0.0017164]
[1732398010961,0.30669,97807.0,97804.0,0.0017164]
[1732398011172,0.102244,97805.0,97804.0,0.0017164]
[1732398011402,0.532534,97805.0,97804.0,0.0017164]
[1732398016721,0.43029,97805.0,97804.0,0.0119404]
[1732398016931,0.43029,97805.0,97804.0,0.0017164]
[1732398017142,0.43029,97805.0,97804.0,0.0119404]
[1732398017780,0.43029,97805.0,97804.0,0.0017164]
[1732398028209,0.532534,97805.0,97804.0,0.0017164]
[1732398031047,0.63454827,97805.0,97804.0,0.0017164]
[1732398033933,0.67630509,97805.0,97804.0,0.0017164]
[1732398041199,0.0771,97804.0,97769.0,0.15]
[1732398041446,0.0771,97792.0,97786.0,0.010226]
[1732398041884,0.0771,97792.0,97785.0,0.010226]
[1732398042064,0.30669,97791.0,97785.0,0.010226]
[1732398042354,0.30669,97791.0,97786.0,0.010226]
[1732398043358,0.35549,97791.0,97786.0,0.010226]
[1732398043840,0.35549,97791.0,97787.0,0.010226]
[1732398044054,0.35549,97791.0,97784.0,0.010226]
[1732398044266,0.35549,97791.0,97788.0,0.010226]
[1732398044512,0.35549,97791.0,97784.0,0.010226]
[1732398044727,0.35549,97791.0,97786.0,0.010226]
[1732398044973,0.35549,97791.0,97786.0,0.020452]
[1732398045194,0.35549,97791.0,97786.0,0.010226]
[1732398045415,0.35549,97791.0,97787.0,0.010226]
[1732398045837,0.35549,97791.0,97786.0,0.010226]
[1732398046250,0.35549,97791.0,97781.0,0.010226]
[1732398046457,0.35549,97791.0,97786.0,0.010226]
[1732398047297,0.35549,97791.0,97787.0,0.010226]
[1732398047503,0.35549,97791.0,97786.0,0.010226]
[1732398047724,0.35549,97791.0,97697.0,0.05195445]
[1732398047725,0.35549,97791.0,97766.0,0.00250024]
[1732398047947,0.35549,97791.0,97761.0,0.001717]
[1732398047948,0.1292,97781.0,97761.0,0.001717]
[1732398048162,0.1292,97781.0,97771.0,0.010227]
[1732398048382,0.40896,97780.0,97773.0,0.010227]
[1732398048609,0.30669,97780.0,97771.0,0.010227]
[1732398048830,0.408961,97780.0,97773.0,0.010227]
[1732398049044,0.408961,97780.0,97774.0,0.010227]
[1732398049258,0.30669,97780.0,97774.0,0.010227]
[1732398049495,0.40870427,97780.0,97761.0,0.04355914]
[1732398049726,0.102279,97772.0,97766.0,0.010228]
[1732398049981,0.38809,97771.0,97766.0,0.010228]
[1732398050614,0.102281,97770.0,97763.0,0.010228]
[1732398050829,0.30669,97769.0,97763.0,0.010228]
[1732398051047,0.0478,97768.0,97763.0,0.010228]
[1732398051268,0.30669,97767.0,97761.0,0.001717]
[1732398051486,0.30669,97767.0,97764.0,0.010228]
[1732398051698,0.30669,97767.0,97762.0,0.010228]
[1732398052130,0.30669,97767.0,97761.0,0.001717]
[1732398052131,0.08267852,97766.0,97761.0,0.001717]
[1732398052355,0.0814,97766.0,97765.0,0.010228]
[1732398052555,0.296462,97765.0,97764.0,0.010228]
[1732398053838,0.296462,97765.0,97761.0,0.001717]
[1732398054279,0.00127858,97764.0,97761.0,0.001717]
[1732398054712,0.296462,97763.0,97761.0,0.001717]
[1732398055157,0.296462,97763.0,97761.0,0.011945]
[1732398055373,0.296462,97763.0,97761.0,0.001717]
[1732398055580,0.296462,97763.0,97761.0,0.011945]
[1732398055787,0.296462,97763.0,97762.0,0.010228]
[1732398056691,0.296462,97763.0,97761.0,0.001717]
[1732398058686,0.296462,97763.0,97762.0,0.010228]
[1732398059794,0.296462,97763.0,97761.0,0.001717]
[1732398060448,0.296462,97763.0,97761.0,0.011945]
[1732398060882,0.296462,97763.0,97762.0,0.010228]
[1732398061102,0.296462,97763.0,97761.0,0.001717]
[1732398061304,0.296462,97763.0,97761.0,0.011945]
[1732398067539,0.296462,97763.0,97762.0,0.010228]
[1732398071341,0.296462,97763.0,97762.0,0.02180444]
[1732398072534,0.296462,97763.0,97751.0,0.001]
[1732398072745,0.296462,97763.0,97762.0,0.010228]
[1732398075439,0.296462,97763.0,97762.0,0.11224227]
[1732398075888,0.296462,97763.0,97762.0,0.15393593]
[1732398079806,0.296462,97763.0,97762.0,0.14893593]
[1732398080007,0.296462,97763.0,97762.0,0.15393593]
[1732398090541,0.2973211,97763.0,97762.0,0.15393593]
[1732398092890,0.3754211,97763.0,97762.0,0.15393593]
[1732398093126,0.3800259,97763.0,97762.0,0.05192166]
[1732398096398,0.3800259,97763.0,97750.0,0.07915327]
[1732398096618,0.3800259,97763.0,97762.0,0.010228]
[1732398100990,0.3800259,97763.0,97762.0,0.05225559]
[1732398103000,0.3800259,97763.0,97762.0,0.05397359]
[1732398105823,0.3800259,97763.0,97762.0,0.04374559]
[1732398106030,0.3800259,97763.0,97762.0,0.05397359]
[1732398108208,0.4272259,97763.0,97762.0,0.001718]
[1732398108463,0.5295139,97763.0,97762.0,0.001718]
[1732398109341,0.65518777,97763.0,97762.0,0.001718]
[1732398109552,0.75920204,97763.0,97762.0,0.001718]
[1732398111855,0.75720204,97763.0,97762.0,0.001718]
[1732398112757,0.4272259,97763.0,97762.0,0.011946]
[1732398113887,0.4272259,97763.0,97762.0,0.001718]
[1732398116724,0.4272259,97763.0,97762.0,0.011946]
[1732398117178,0.4272259,97763.0,97762.0,0.001718]
[1732398117407,0.4272259,97763.0,97762.0,0.011946]
[1732398117634,0.4272259,97763.0,97762.0,0.001718]
[1732398119526,0.4272259,97763.0,97762.0,0.011946]
[1732398119773,0.4272259,97763.0,97762.0,0.001718]
[1732398121025,0.4272259,97763.0,97762.0,0.011946]
[1732398121268,0.4272259,97763.0,97762.0,0.007946]
[1732398125934,0.4272259,97763.0,97762.0,0.009664]
[1732398127069,0.4272259,97763.0,97762.0,0.001718]
[1732398127827,0.4272259,97763.0,97762.0,0.011946]
[1732398128054,0.4272259,97763.0,97762.0,0.001718]
[1732398130197,0.4272259,97763.0,97762.0,0.011946]
[1732398132122,0.4272259,97763.0,97762.0,0.001718]
[1732398132346,0.4272259,97763.0,97762.0,0.011946]
[1732398135183,0.4272259,97763.0,97755.0,0.010229]
[1732398135431,0.4272259,97763.0,97762.0,0.010228]
[1732398136567,0.4272259,97763.0,97758.0,0.002457]
[1732398136824,0.4272259,97763.0,97760.0,0.010229]
[1732398137050,0.4272259,97763.0,97762.0,0.010228]
[1732398138659,0.4272259,97763.0,97762.0,0.011946]
[1732398140643,0.3019259,97763.0,97762.0,0.01318074]
[1732398144204,0.3019259,97763.0,97762.0,0.26519501]
[1732398149910,0.3019259,97763.0,97762.0,0.011946]
[1732398149911,0.3824259,97763.0,97762.0,0.011946]
[1732398150329,0.4275259,97763.0,97762.0,0.011946]
[1732398157573,0.0797,97762.0,97739.0,0.010231]